bitfinex/quotes_SOLUSD_20240705
["timestamp","ask_amount","ask_price","bid_price","bid_amount"]
[1720221435329,100.0,135.01,134.97,15.8924]
[1720221435714,100.0,134.99,134.97,15.8924]
[1720221437733,100.0,134.97,134.94,15.8924]
[1720221439332,100.0,134.99,134.94,15.8924]
[1720221439530,100.0,135.01,134.95,6.0977]
[1720221439917,7.74674759,135.01,134.95,6.0977]
[1720221440122,107.74674759,135.01,134.95,6.0977]
[1720221440714,100.0,134.99,134.95,6.0977]
[1720221441127,107.74674759,135.01,134.95,6.0977]
[1720221442825,7.74674759,135.01,134.95,6.0977]
[1720221443021,125.84,135.03,134.95,6.0977]
[1720221443231,7.74924111,135.01,134.95,6.0977]
[1720221443616,100.0,135.0,134.95,6.0977]
[1720221444541,100.0,135.0,134.94,15.8924]
[1720221444743,107.4075,135.0,134.94,15.8924]
[1720221444941,100.0,135.0,134.94,15.8924]
[1720221447540,7.74941588,135.01,134.95,6.0977]
[1720221447851,100.0,135.06,134.96,15.4272]
[1720221448239,100.0,135.06,134.97,41.6949]
[1720221448240,7.74446368,135.06,134.97,41.6949]
[1720221448616,100.0,135.08,134.97,67.5349]
[1720221449138,107.74587701,135.08,134.97,67.5349]
[1720221449330,100.0,135.06,134.97,67.5349]
[1720221450230,115.14887701,135.08,134.97,67.5349]
[1720221450420,100.0,135.06,134.97,67.5349]
[1720221450627,100.0,135.06,134.97,41.6949]
[1720221451452,100.0,135.04,134.97,41.5249]
[1720221452119,100.0,135.04,134.97,21.5249]
[1720221453121,100.0,135.06,134.97,21.5249]
[1720221453324,100.0,135.04,134.97,21.5249]
[1720221453851,0.17,135.05,134.97,21.5249]
[1720221454734,100.0,135.04,134.97,21.5249]
[1720221456927,7.74587701,135.08,134.97,21.5249]
[1720221456928,100.0,135.06,134.97,21.5249]
[1720221457133,107.74587701,135.08,134.98,20.17]
[1720221457353,107.74587701,135.08,134.99,16.1644]
[1720221462173,100.0,135.05,134.99,16.1644]
[1720221462554,100.0,135.07,134.99,16.1644]
[1720221462868,100.0,135.05,134.99,16.1644]
[1720221465435,100.0,135.07,134.99,16.1644]
[1720221466384,100.0,135.05,134.99,16.1644]
[1720221467553,100.0,135.07,134.99,16.1644]
[1720221469446,33.75587701,135.08,134.99,16.1644]
[1720221469447,7.74587701,135.08,134.99,16.1644]
[1720221469786,7.74587701,135.08,135.02,15.4518]
[1720221469950,100.0,135.13,135.04,21.8509]
[1720221470856,107.74040301,135.13,135.04,21.8509]
[1720221472480,115.14060301,135.13,135.04,21.8509]
[1720221473670,107.74040301,135.13,135.04,21.8509]
[1720221476298,115.14060301,135.13,135.04,21.8509]
[1720221476801,107.74040301,135.13,135.04,21.8509]
[1720221477166,115.14060301,135.13,135.04,21.8509]
[1720221477972,107.74040301,135.13,135.04,21.8509]
[1720221479170,100.0,135.11,135.04,21.8509]
[1720221479895,100.0,135.09,135.04,21.8509]
[1720221480098,100.0,135.07,135.04,15.4518]
[1720221480269,100.0,135.07,135.01,6.3991]
[1720221480675,100.0,135.05,135.01,6.3991]
[1720221480971,100.0,135.05,135.0,15.4518]
[1720221481191,7.74745741,135.04,135.0,15.4518]
[1720221481710,7.74745741,135.04,134.97,6.3991]
[1720221481711,100.0,135.03,134.97,6.3991]
[1720221481903,100.0,135.01,134.97,6.3991]
[1720221482087,100.0,135.01,134.96,15.4518]
[1720221482088,100.0,134.99,134.96,15.4518]
[1720221482607,100.0,134.99,134.93,6.3991]
[1720221482781,125.84,134.99,134.93,6.3991]
[1720221483674,125.84,134.99,134.92,15.4518]
[1720221483675,100.0,134.95,134.92,15.4518]
[1720221483879,100.0,134.91,134.85,21.8509]
[1720221484288,100.0,134.89,134.85,15.4518]
[1720221484494,100.0,134.89,134.84,0.8891015]
[1720221484689,125.84,134.91,134.84,0.8891015]
[1720221485080,100.0,134.89,134.84,0.8891015]
[1720221485591,125.84,134.89,134.84,0.8891015]
[1720221485786,0.17,134.88,134.84,0.8891015]
[1720221486802,100.0,134.87,134.84,0.8891015]
[1720221487182,100.0,134.85,134.84,0.8891015]
[1720221488295,100.0,134.87,134.84,0.8891015]
[1720221489595,100.0,134.85,134.84,0.8891015]
[1720221489781,100.0,134.87,134.84,0.8891015]
[1720221491599,7.7433757,134.86,134.84,0.8891015]
[1720221494400,100.0,134.85,134.84,0.8891015]
[1720221494605,100.0,134.82,134.81,0.1]
[1720221494815,100.0,134.78,134.73,15.9971]
[1720221494996,100.0,134.76,134.71,1.0891015]
[1720221496201,100.0,134.74,134.71,1.0891015]
[1720221496609,107.4217,134.74,134.71,1.0891015]
[1720221496907,100.0,134.76,134.71,1.0891015]
[1720221499613,100.0,134.74,134.71,1.0891015]
[1720221500902,100.0,134.76,134.71,1.0891015]
[1720221501799,7.74485099,134.75,134.71,1.0891015]
[1720221502006,100.0,134.74,134.71,1.0891015]
[1720221502205,100.0,134.72,134.71,1.0891015]
[1720221502805,107.5928,134.72,134.71,1.0891015]
[1720221503010,100.17,134.72,134.71,1.0891015]
[1720221503703,107.5928,134.72,134.71,1.0891015]
[1720221504815,113.7011,134.72,134.71,1.0891015]
[1720221505018,113.7011,134.72,134.61,0.2]
[1720221505019,100.0,134.65,134.61,0.2]
[1720221507418,100.0,134.68,134.61,0.2]
[1720221507804,100.0,134.66,134.61,0.2]
[1720221508529,100.0,134.64,134.61,0.2]
[1720221508731,100.0,134.62,134.61,0.2]
[1720221509506,0.17,134.63,134.61,0.2]
[1720221509725,100.0,134.64,134.61,0.2]
[1720221509895,100.0,134.62,134.61,0.2]
[1720221510203,100.0,134.64,134.61,0.2]
[1720221510400,100.0,134.62,134.61,0.2]
[1720221510597,100.0,134.64,134.61,0.2]
[1720221510825,100.0,134.62,134.61,0.2]
[1720221513002,107.71877213,134.62,134.61,0.2]
[1720221513893,100.0,134.62,134.61,0.2]
[1720221514224,107.90194486,134.62,134.61,0.2]
[1720221514422,115.33024486,134.62,134.61,0.2]
[1720221515630,107.90194486,134.62,134.61,0.2]
[1720221516632,115.33024486,134.62,134.61,0.2]
[1720221516927,100.0,134.58,134.57,0.8891015]
[1720221517116,100.17,134.58,134.57,0.8891015]
[1720221517314,107.6005,134.58,134.57,0.8891015]
[1720221517829,100.17,134.58,134.57,0.8891015]
[1720221518206,107.6005,134.58,134.57,0.8891015]
[1720221519448,113.8165,134.58,134.57,0.8891015]
[1720221520319,100.0,134.53,134.51,0.2]
[1720221521125,100.0,134.55,134.51,0.2]
[1720221521373,123.7478,134.59,134.51,0.2]
[1720221521374,100.0,134.59,134.51,0.2]
[1720221521809,100.0,134.55,134.51,0.2]
[1720221522215,100.0,134.57,134.51,0.2]
[1720221522742,100.0,134.55,134.51,0.2]
[1720221524439,100.0,134.53,134.51,0.2]
[1720221525924,0.17,134.52,134.51,0.2]
[1720221526120,7.6038,134.52,134.51,0.2]
[1720221528056,100.0,134.47,134.43,0.8891015]
[1720221528549,100.0,134.49,134.43,0.8891015]
[1720221528846,100.0,134.47,134.43,0.8891015]
[1720221529144,100.0,134.45,134.43,0.8891015]
[1720221529563,100.0,134.47,134.43,0.8891015]
[1720221529723,0.17,134.5,134.43,0.8891015]
[1720221529724,100.0,134.5,134.43,0.8891015]
[1720221530127,121.37111235,134.55,134.43,20.8891015]
[1720221530128,100.0,134.52,134.43,20.8891015]
[1720221530351,7.72301235,134.55,134.43,20.8891015]
[1720221530352,100.0,134.54,134.44,21.9587]
[1720221530540,100.0,134.54,134.45,20.0]
[1720221530857,7.72301235,134.55,134.45,20.0]
[1720221530858,107.72301235,134.55,134.45,20.0]
[1720221531155,115.719,134.62,134.47,21.9587]
[1720221531156,100.0,134.57,134.47,21.9587]
[1720221531447,100.0,134.57,134.48,20.17]
[1720221531647,107.71884392,134.57,134.48,20.17]
[1720221531860,107.71884392,134.57,134.48,20.0]
[1720221532924,100.0,134.53,134.48,20.0]
[1720221534823,100.0,134.53,134.47,21.9587]
[1720221538053,107.71884392,134.57,134.47,21.9587]
[1720221538232,107.71884392,134.57,134.48,20.0]
[1720221539028,7.71884392,134.57,134.48,20.0]
[1720221539423,7.71884392,134.57,134.49,0.17]
[1720221539731,100.0,134.57,134.49,0.17]
[1720221540253,100.0,134.57,134.5,15.6448]
[1720221540655,100.0,134.54,134.5,15.6448]
[1720221541165,100.0,134.56,134.5,15.6448]
[1720221542972,100.0,134.58,134.5,15.6448]
[1720221543542,7.71982208,134.59,134.51,6.3139]
[1720221543793,100.0,134.6,134.53,15.6448]
[1720221543938,100.0,134.58,134.53,15.6448]
[1720221544140,107.72784647,134.6,134.53,15.6448]
[1720221544365,100.0,134.62,134.53,15.6448]
[1720221544538,100.0,134.64,134.55,15.6448]
[1720221545371,100.0,134.62,134.56,20.0]
[1720221545977,7.71362783,134.64,134.56,20.0]
[1720221546273,100.0,134.66,134.56,20.0]
[1720221546569,100.0,134.65,134.56,20.0]
[1720221546778,7.71286976,134.66,134.56,64.53]
[1720221546942,7.71286976,134.66,134.58,21.9587]
[1720221547141,100.0,134.67,134.58,21.9587]
[1720221547142,107.4257,134.67,134.58,21.9587]
[1720221547443,100.0,134.65,134.58,21.9587]
[1720221547839,107.4267,134.65,134.58,21.9587]
[1720221548035,100.0,134.65,134.58,21.9587]
[1720221548857,7.72876,134.66,134.58,21.9587]
[1720221549477,100.0,134.63,134.58,21.9587]
[1720221550670,100.0,134.61,134.58,21.9587]
[1720221550971,100.0,134.59,134.54,21.0743]
[1720221551149,100.0,134.57,134.54,21.0743]
[1720221551479,100.0,134.57,134.54,15.006]
[1720221551640,100.0,134.59,134.54,15.006]
[1720221552671,100.0,134.61,134.54,15.006]
[1720221552848,100.0,134.63,134.54,15.006]
[1720221553170,53.19796,134.66,134.54,15.006]
[1720221553171,100.0,134.61,134.54,15.006]
[1720221553477,100.0,134.59,134.54,15.006]
[1720221553651,7.4289,134.61,134.54,15.006]
[1720221553652,100.0,134.61,134.54,15.006]
[1720221555681,100.0,134.65,134.56,15.006]
[1720221556049,100.0,134.65,134.57,20.17]
[1720221556261,100.0,134.63,134.57,20.0]
[1720221556549,107.71065901,134.65,134.57,20.0]
[1720221556748,7.71065901,134.65,134.57,20.0]
[1720221556948,100.0,134.65,134.57,20.0]
[1720221558463,107.72734777,134.65,134.57,20.0]
[1720221559370,100.0,134.65,134.57,20.0]
[1720221559960,100.0,134.67,134.58,21.0743]
[1720221560169,100.0,134.67,134.59,20.0]
[1720221560479,100.0,134.65,134.59,20.0]
[1720221560894,107.71053321,134.67,134.59,20.0]
[1720221561176,100.0,134.67,134.59,20.0]
[1720221563369,100.0,134.71,134.61,6.0683]
[1720221563573,100.0,134.69,134.63,15.006]
[1720221563993,107.71689299,134.71,134.63,15.006]
[1720221564565,100.0,134.73,134.63,15.006]
[1720221564781,0.17,134.72,134.63,15.006]
[1720221565288,23.28587335,134.77,134.62,0.17]
[1720221565289,0.2,134.79,134.68,15.006]
[1720221565479,0.2,134.79,134.69,20.17]
[1720221566565,100.0,134.76,134.69,20.0]
[1720221567163,100.0,134.78,134.69,20.0]
[1720221567755,0.17,134.77,134.69,20.0]
[1720221567960,100.0,134.75,134.69,20.0]
[1720221568161,100.17,134.77,134.69,20.0]
[1720221568606,100.0,134.77,134.69,20.0]
[1720221570759,7.4195,134.78,134.68,15.006]
[1720221570760,100.0,134.72,134.68,15.006]
[1720221570979,100.0,134.74,134.68,15.006]
[1720221571205,100.0,134.72,134.68,15.006]
[1720221571383,107.4229,134.72,134.68,15.006]
[1720221571577,100.0,134.68,134.64,22.6139]
[1720221572080,100.0,134.68,134.64,16.2828]
[1720221572306,100.0,134.7,134.64,16.2828]
[1720221572490,100.0,134.68,134.64,16.2828]
[1720221572900,100.0,134.7,134.64,16.2828]
[1720221573191,100.0,134.68,134.64,16.2828]
[1720221574482,100.0,134.7,134.64,16.2828]
[1720221574679,100.0,134.72,134.64,16.2828]
[1720221574875,0.17,134.71,134.64,16.2828]
[1720221576074,100.0,134.7,134.64,16.2828]
[1720221578003,7.7293238,134.72,134.64,16.2828]
[1720221578162,100.0,134.74,134.65,20.0]
[1720221578363,107.71730251,134.74,134.65,20.0]
[1720221579287,0.17,134.73,134.65,20.0]
[1720221579488,7.71730251,134.74,134.66,6.3311]
[1720221579812,100.0,134.76,134.67,20.0]
[1720221580009,107.7301636,134.76,134.67,20.0]
[1720221580198,107.7301636,134.76,134.68,0.17]
[1720221580403,100.0,134.74,134.67,20.0]
[1720221582337,0.17,134.73,134.67,20.0]
[1720221582889,100.0,134.72,134.67,20.0]
[1720221583394,0.17,134.73,134.66,6.3311]
[1720221583395,100.0,134.7,134.66,6.3311]
[1720221583984,100.0,134.72,134.66,6.3311]
[1720221584217,100.0,134.7,134.66,6.3311]
[1720221585186,100.0,134.68,134.64,16.2828]
[1720221585692,100.0,134.7,134.64,16.2828]
[1720221585912,100.0,134.68,134.64,16.2828]
[1720221586710,100.0,134.66,134.57,16.2828]
[1720221586904,100.0,134.66,134.58,6.3311]
[1720221587515,0.17,134.71,134.58,6.3311]
[1720221587516,100.0,134.64,134.58,6.3311]
[1720221588008,100.0,134.62,134.58,6.3311]
[1720221589208,100.0,134.64,134.58,6.3311]
[1720221589407,0.17,134.63,134.58,6.3311]
[1720221590228,100.0,134.64,134.58,6.3311]
[1720221590229,7.7677013,134.64,134.58,6.3311]
[1720221590518,100.0,134.66,134.58,6.3311]
[1720221590721,22.8034,134.7,134.58,6.3311]
[1720221590722,100.0,134.63,134.58,6.3311]
[1720221591426,107.9377916,134.65,134.58,6.3311]
[1720221591598,100.17,134.65,134.58,6.3311]
[1720221593297,100.0,134.68,134.58,6.3311]
[1720221593627,100.0,134.7,134.59,20.0]
[1720221594022,100.0,134.68,134.59,20.0]
[1720221594328,100.0,134.65,134.59,20.0]
[1720221594511,100.0,134.67,134.59,20.0]
[1720221595503,100.0,134.65,134.59,20.0]
[1720221596204,0.17,134.66,134.59,20.0]
[1720221596625,100.0,134.67,134.59,20.0]
[1720221597111,100.0,134.69,134.59,20.0]
[1720221597296,100.0,134.67,134.6,15.9753]
[1720221599417,0.17,134.68,134.6,15.9753]
[1720221599611,100.0,134.66,134.6,15.9753]
[1720221600727,100.0,134.62,134.6,15.9753]
[1720221600940,100.0,134.62,134.56,15.9753]
[1720221601149,100.0,134.6,134.56,15.9753]
[1720221601349,100.0,134.62,134.56,15.9753]
[1720221601520,6.5338,134.66,134.56,15.9753]
[1720221601521,100.0,134.59,134.56,15.9753]
[1720221602027,100.0,134.63,134.56,15.9753]
[1720221602534,0.17,134.64,134.56,15.9753]
[1720221602736,100.0,134.65,134.57,20.0]
[1720221603623,100.0,134.63,134.57,20.0]
[1720221603827,100.0,134.61,134.56,15.9753]
[1720221604342,0.17,134.62,134.56,15.9753]
[1720221604639,100.0,134.6,134.56,15.9753]
[1720221605130,100.17,134.62,134.56,15.9753]
[1720221606640,100.0,134.58,134.56,15.9753]
[1720221606827,100.0,134.58,134.49,22.1925]
[1720221607037,100.0,134.55,134.49,22.1925]
[1720221608322,100.0,134.55,134.5,20.0]
[1720221611435,100.0,134.59,134.5,20.0]
[1720221611842,0.17,134.58,134.5,20.0]
[1720221612044,100.0,134.61,134.51,16.6191]
[1720221612364,100.0,134.61,134.52,20.17]
[1720221613449,15.19551183,134.64,134.52,20.0]
[1720221613450,100.0,134.59,134.52,20.0]
[1720221614037,100.0,134.61,134.52,20.0]
[1720221614242,100.0,134.59,134.52,20.0]
[1720221615545,100.0,134.56,134.51,16.6191]
[1720221615745,100.0,134.54,134.51,16.6191]
[1720221615940,100.0,134.54,134.47,23.2236]
[1720221616142,100.0,134.52,134.47,23.2236]
[1720221616455,100.0,134.54,134.47,23.2236]
[1720221617249,100.0,134.56,134.47,23.2236]
[1720221617447,100.0,134.56,134.48,20.0]
[1720221619132,100.0,134.58,134.48,20.0]
[1720221619351,100.0,134.6,134.5,6.6045]
[1720221619555,100.0,134.6,134.51,20.0]
[1720221620861,7.76821183,134.64,134.52,16.7891]
[1720221620862,100.0,134.62,134.52,16.7891]
[1720221621038,100.0,134.62,134.53,26.6045]
[1720221622158,100.0,134.6,134.53,26.6045]
[1720221622857,100.0,134.62,134.53,26.6045]
[1720221623051,100.0,134.64,134.53,26.6045]
[1720221623432,107.77412703,134.64,134.53,26.6045]
[1720221623958,100.0,134.6,134.53,26.6045]
[1720221624466,100.0,134.57,134.53,26.6045]
[1720221624755,100.0,134.54,134.52,16.6191]
[1720221624939,100.17,134.56,134.52,16.6191]
[1720221625135,100.0,134.54,134.52,16.6191]
[1720221625540,100.17,134.56,134.52,16.6191]
[1720221626141,15.5641,134.61,134.52,16.6191]
[1720221626142,100.0,134.58,134.52,16.6191]
[1720221626356,100.0,134.54,134.52,16.6191]
[1720221626759,0.17,134.57,134.52,16.6191]
[1720221626760,100.0,134.56,134.52,16.6191]
[1720221626942,0.17,134.55,134.52,16.6191]
[1720221627395,100.0,134.54,134.52,16.6191]
[1720221627549,100.0,134.52,134.48,16.6191]
[1720221627751,100.0,134.49,134.46,6.6045]
[1720221628054,100.17,134.51,134.46,6.6045]
[1720221628436,100.0,134.51,134.46,6.6045]
[1720221629142,100.0,134.53,134.46,6.6045]
[1720221630954,0.17,134.54,134.46,6.6045]
[1720221631262,100.0,134.55,134.47,20.0]
[1720221631565,100.0,134.57,134.48,15.8988]
[1720221631749,100.0,134.57,134.49,20.0]
[1720221633066,100.0,134.61,134.5,6.4243]
[1720221633241,100.0,134.59,134.51,35.8988]
[1720221633762,100.0,134.56,134.51,35.8988]
[1720221634351,100.0,134.58,134.51,35.8988]
[1720221634669,100.0,134.6,134.51,35.8988]
[1720221634840,100.0,134.57,134.51,15.8988]
[1720221635041,100.0,134.55,134.51,15.8988]
[1720221636686,100.0,134.57,134.51,15.8988]
[1720221636850,100.0,134.59,134.51,15.8988]
[1720221637063,0.17,134.58,134.51,15.8988]
[1720221637366,100.0,134.55,134.51,15.8988]
[1720221638678,100.0,134.57,134.51,15.8988]
[1720221639383,0.17,134.56,134.51,15.8988]
[1720221640182,100.0,134.55,134.51,15.8988]
[1720221643564,100.0,134.53,134.48,15.8988]
[1720221644268,100.0,134.55,134.48,15.8988]
[1720221646092,100.0,134.57,134.49,20.0]
[1720221646283,100.0,134.59,134.49,46.05]
[1720221646667,100.0,134.59,134.5,22.3231]
[1720221646963,100.0,134.61,134.51,0.17]
[1720221647163,100.0,134.59,134.5,22.3231]
[1720221647361,100.0,134.61,134.5,22.3231]
[1720221647585,100.0,134.63,134.54,41.9488]
[1720221647902,100.0,134.65,134.57,15.8988]
[1720221648190,100.0,134.65,134.58,20.0]
[1720221649183,100.0,134.67,134.58,20.0]
[1720221649388,100.0,134.67,134.59,6.3076]
[1720221650759,0.17,134.66,134.59,6.3076]
[1720221650964,100.0,134.69,134.59,6.3076]
[1720221651164,100.0,134.68,134.59,6.3076]
[1720221651463,100.0,134.7,134.59,6.3076]
[1720221651781,100.0,134.7,134.6,20.0]
[1720221651967,6.4821,134.72,134.6,20.0]
[1720221652174,100.0,134.7,134.6,20.0]
[1720221652579,100.0,134.7,134.61,16.1841]
[1720221652784,100.0,134.7,134.62,20.0]
[1720221653090,100.0,134.66,134.61,16.1841]
[1720221653586,7.424,134.7,134.61,16.1841]
[1720221653587,100.0,134.68,134.61,16.1841]
[1720221653814,0.17,134.67,134.61,16.1841]
[1720221654518,100.0,134.66,134.61,16.1841]
[1720221656183,100.0,134.64,134.61,16.1841]
[1720221656600,100.0,134.66,134.61,16.1841]
[1720221656794,0.17,134.65,134.61,16.1841]
[1720221656992,100.0,134.64,134.61,16.1841]
[1720221658110,0.17,134.65,134.56,22.4917]
[1720221658111,100.0,134.62,134.56,22.4917]
[1720221658413,100.0,134.62,134.57,20.0]
[1720221659423,100.0,134.64,134.57,20.0]
[1720221659590,0.17,134.63,134.57,20.0]
[1720221659796,100.0,134.68,134.57,20.0]
[1720221660833,100.0,134.7,134.6,6.3076]
[1720221661122,100.0,134.7,134.62,16.1841]
[1720221661293,100.0,134.68,134.62,16.1841]
[1720221661886,100.0,134.71,134.62,16.1841]
[1720221662501,100.0,134.69,134.62,16.1841]
[1720221662912,100.0,134.71,134.62,16.1841]
[1720221663102,100.0,134.73,134.64,6.3076]
[1720221663310,100.0,134.73,134.65,20.0]
[1720221663494,100.0,134.75,134.65,20.0]
[1720221663826,100.0,134.74,134.66,16.1841]
[1720221664192,100.0,134.76,134.67,20.0]
[1720221664390,100.0,134.78,134.68,6.3076]
[1720221665689,100.0,134.76,134.68,6.3076]
[1720221666716,100.0,134.73,134.68,6.3076]
[1720221666916,100.0,134.75,134.68,6.3076]
[1720221667430,100.0,134.73,134.68,6.3076]
[1720221668019,100.0,134.75,134.68,6.3076]
[1720221668718,100.0,134.73,134.68,6.3076]
[1720221668920,0.17,134.76,134.68,6.3076]
[1720221668921,100.0,134.75,134.68,6.3076]
[1720221669119,0.17,134.74,134.68,6.3076]
[1720221669529,100.0,134.73,134.68,6.3076]
[1720221670201,0.17,134.74,134.68,6.3076]
[1720221671418,100.0,134.75,134.68,6.3076]
[1720221672805,100.0,134.73,134.68,6.3076]
[1720221672997,100.0,134.73,134.67,20.0]
[1720221673201,100.0,134.71,134.67,20.0]
[1720221673414,100.0,134.71,134.66,16.1841]
[1720221674303,0.17,134.72,134.66,16.1841]
[1720221674514,100.0,134.71,134.66,16.1841]
[1720221676702,100.0,134.69,134.66,16.1841]
[1720221676922,100.0,134.75,134.52,29.756712]
[1720221676923,100.0,134.67,134.63,15.3976]
[1720221677121,0.17,134.68,134.63,15.3976]
[1720221677122,100.0,134.65,134.63,15.3976]
[1720221677301,18.5575,134.72,134.59,15.3976]
[1720221677302,100.0,134.63,134.59,15.3976]
[1720221677502,100.0,134.65,134.59,15.3976]
[1720221677904,100.0,134.63,134.59,15.3976]
[1720221680928,100.0,134.68,134.59,15.3976]
[1720221681333,116.3842,134.73,134.61,6.1841]
[1720221681334,100.0,134.7,134.61,6.1841]
[1720221681808,100.0,134.72,134.63,15.3976]
[1720221682009,100.0,134.7,134.63,15.3976]
[1720221682244,100.0,134.72,134.63,15.3976]
[1720221682735,100.0,134.72,134.64,20.0]
[1720221682907,100.0,134.7,134.64,20.0]
[1720221683711,100.0,134.72,134.64,20.0]
[1720221684710,100.0,134.7,134.64,20.0]
[1720221685109,100.0,134.7,134.63,15.3976]
[1720221688837,7.4223,134.73,134.63,15.3976]
[1720221688838,100.0,134.73,134.63,15.3976]
[1720221689043,100.0,134.75,134.64,26.7009]
[1720221689338,100.0,134.77,134.65,16.0338]
[1720221689515,100.0,134.77,134.66,20.17]
[1720221689721,1.53102292,134.78,134.67,22.5647]
[1720221689922,119.72753502,134.79,134.68,20.0]
[1720221690430,100.0,134.77,134.68,20.0]
[1720221690606,100.0,134.75,134.68,20.0]
[1720221691108,100.0,134.77,134.68,20.0]
[1720221691325,100.0,134.75,134.68,20.0]
[1720221695129,100.2,134.79,134.68,20.0]
[1720221695337,0.17,134.78,134.68,20.0]
[1720221695545,100.2,134.79,134.68,20.0]
[1720221696461,0.2,134.79,134.7,6.5309]
[1720221696668,0.2,134.79,134.68,64.7]
[1720221696669,0.2,134.79,134.73,6.5309]
[1720221696829,0.2,134.79,134.75,16.0338]
[1720221697025,0.2,134.79,134.76,20.0]
[1720221697645,254.5,134.86,134.78,6.5309]
[1720221697845,100.0,134.87,134.79,20.0]
[1720221700263,0.2,134.89,134.79,20.0]
[1720221700264,100.2,134.89,134.79,20.0]
[1720221700443,100.2,134.89,134.8,16.0338]
[1720221700764,100.2,134.89,134.81,20.0]
[1720221702563,100.0,134.86,134.8,16.0338]
[1720221703263,100.0,134.84,134.78,6.5309]
[1720221705666,0.17,134.85,134.78,6.5309]
[1720221705846,100.0,134.86,134.78,6.5309]
[1720221707338,100.0,134.88,134.78,6.5309]
[1720221707545,100.0,134.88,134.79,20.17]
[1720221707863,0.2,134.89,134.79,20.17]
[1720221708050,0.2,134.89,134.8,16.0338]
[1720221708462,100.0,134.88,134.8,16.0338]
[1720221709358,0.2,134.89,134.8,16.0338]
[1720221711067,0.2,134.89,134.82,6.3536]
[1720221711264,0.2,134.89,134.83,0.17]
[1720221711843,0.2,134.89,134.83,20.17]
[1720221713171,0.2,134.89,134.83,20.0]
[1720221713757,0.2,134.89,134.82,6.3536]
[1720221716471,100.0,134.88,134.82,6.3536]
[1720221718449,0.2,134.89,134.82,6.3536]
[1720221720272,100.0,134.88,134.82,6.3536]
[1720221723154,100.0,134.87,134.82,6.3536]
[1720221723360,100.0,134.85,134.8,16.0338]
[1720221724162,7.5841,134.88,134.8,16.0338]
[1720221724163,100.0,134.87,134.8,16.0338]
[1720221725006,100.0,134.85,134.8,16.0338]
[1720221725185,100.0,134.87,134.8,16.0338]
[1720221728457,0.17,134.88,134.8,16.0338]
[1720221728458,100.2,134.89,134.8,16.0338]
[1720221728784,0.2,134.89,134.82,6.3536]
[1720221728994,0.2,134.89,134.84,16.4224]
[1720221729580,0.2,134.89,134.85,20.17]